[Event "3rd Caraca Open 2022"]
[Site "Catas Altas"]
[Date "2022.07.09"]
[Round "2.1"]
[White "Mareco, Sandro"]
[Black "Goncalves, Andre Luiz Sampaio"]
[Result "1-0"]
[ECO "A35"]
[WhiteElo "2657"]
[BlackElo "1929"]
[Annotator "TA"]
[PlyCount "43"]
[EventDate "2022.06.28"]
[EventCountry "BRA"]
[SourceTitle "playchess.com"]
[Source "ChessBase"]
[SourceQuality "1"]
[TimeControl "900+5"]

{[%evp 9,43,38,59,53,60,51,62,50,66,66,74,66,86,40,24,30,113,104,89,83,113,108,202,152,523,523,29994,29995,29995,29996,29996,29997,29997,29998,29998,29999]} 1. Nf3 {[%emt 0:00:01]} e6 {[%emt 0:00:06]} 2. c4 {[%emt 0:00:02]} c5 {[%emt 0:00:11]} 3. Nc3 {[%emt 0:00:04]} Nc6 {[%emt 0:00:11]} 4. g3 {[%emt 0:00:10]} Nge7 {[%emt 0:00:19]} 5. Bg2 {[%emt 0:00:08]} g6 {[%emt 0:00:20]} 6. d4 {[%emt 0:01:05] A35: Symmetrical English: 2 Nc3 Nc6 3 Nf3.} cxd4 {[%emt 0:03:12]} 7. Nxd4 {[%emt 0:00:02]} Bg7 {[%emt 0:00:07]} 8. Ndb5 {[%emt 0:00:02] Threatens to win with Bf4. White is more active. White is slightly better.} O-O {[%emt 0:00:48][%cal Od7d5]} 9. Nd6 {[%emt 0:00:02] [#]} Nf5 $146 {[%emt 0:00:37]} ({Predecessor:} 9... Qa5 10. O-O a6 11. Be3 b5 12. cxb5 axb5 13. Ndxb5 d5 14. Bd2 Ba6 15. a4 Qb6 {1-0 (26) Maevsky,N (2305)-Gorovykh,E (2438) St Petersburg 2011}) 10. Nxf5 {[%emt 0:00:05]} exf5 {[%emt 0:00:02]} 11. O-O {[%emt 0:00:05]} ({White should try} 11. Bd2 $16) 11... Bxc3 $14 {[%emt 0:01:07]} 12. bxc3 {[%emt 0:00:02]} Qa5 {[%emt 0:00:55]} (12... b6 $11 {keeps the balance.}) 13. Bh6 $16 {[%emt 0:00:13] [#] Hoping for Bxc6.} Re8 {[%emt 0:00:02]} 14. Qd2 {[%emt 0:00:03]} Qe5 {[%emt 0:00:37]} 15. e4 {[%emt 0:00:32] Black must now prevent exf5.} fxe4 {[%emt 0:00:14]} (15... d6 $16) 16. Bxe4 {[%emt 0:00:17] This bishop pair is nice.} Ne7 $2 {[%emt 0:03:25] [#] Loses the game.} (16... Qxe4 $2 17. Rae1 Qe5 18. Rxe5 Nxe5 19. f4 $18) (16... d5 $16 17. cxd5 (17. Bxd5 Be6 $16) 17... Qd6) 17. Rfe1 $18 {[%emt 0:00:04][%cal Bf1e1,Be1e5,Be5e8,Be8f8][%mdl 32]} Qa5 {[%emt 0:00:29]} 18. Qd4 {[%emt 0:00:17][%csl Gh6][%cal Rd4g7] White mates.} Nf5 {[%emt 0:02:10]} 19. Bxf5 {[%emt 0:00:04][%cal Re1e8]} Re5 {[%emt 0:00:10]} 20. Rxe5 {[%emt 0:00:04][%cal Re5e8]} f6 {[%emt 0:01:43]} 21. Re8+ {[%emt 0:00:07]} Kf7 {[%emt 0:00:00]} 22. Rf8+ {[%emt 0:13:26] Weighted Error Value: White=0.08 (flawless) /Black=0.91} 1-0

[Event "3rd Caraca Open 2022"]
[Site "Catas Altas"]
[Date "2022.07.09"]
[Round "2.2"]
[White "Casalaspro, Mathias Andre"]
[Black "Supi, Luis Paulo"]
[Result "0-1"]
[ECO "B53"]
[WhiteElo "1749"]
[BlackElo "2603"]
[Annotator "TA"]
[PlyCount "80"]
[EventDate "2022.06.28"]
[EventCountry "BRA"]
[SourceTitle "playchess.com"]
[Source "ChessBase"]
[SourceQuality "1"]
[TimeControl "900+5"]

{[%evp 11,80,14,55,33,37,29,26,29,30,22,60,45,51,50,46,21,33,-34,47,50,40,30,57,50,41,23,23,22,69,18,22,21,16,-23,-12,-8,-15,-18,-43,-82,-95,-111,-105,-147,-154,-146,-135,-677,-272,-232,-228,-297,-290,-302,-293,-440,-430,-532,-530,-523,-525,-528,-519,-776,-616,-602,-602,-1050,-935,-954,-911]} 1. e4 {[%emt 0:00:03]} c5 {[%emt 0:00:00]} 2. Nf3 {[%emt 0:00:02]} d6 {[%emt 0:00:01]} 3. d4 {[%emt 0:00:02]} cxd4 {[%emt 0:00:02]} 4. Qxd4 {[%emt 0:00:01]} a6 {[%emt 0:00:04]} 5. c4 {[%emt 0:00:07]} Nf6 {[%emt 0:00:02]} 6. Nc3 {[%emt 0:00:02]} e6 {[%emt 0:00:02]} 7. Bg5 {[%emt 0:00:30][%cal Bc1g5,Bg5h4,Bh4g3][%mdl 32] B53: Sicilian: 2...d6: Lines with Qxd4.} Nbd7 {[%emt 0:00:21]} 8. Rd1 {[%emt 0:00:36]} Qc7 {[%emt 0:00:02]} 9. Be2 {[%emt 0:00:25] [#] White has an edge.} b6 $146 {[%emt 0:00:05]} ({Predecessor:} 9... Be7 10. O-O O-O 11. Rfe1 Rd8 12. h3 b6 13. Qe3 Bb7 14. Bh4 h6 15. Bg3 Ne5 {0-1 (58) Dekic,B (2064)-Domarkaite,L (2161) Baku 2016}) 10. Bh4 {[%emt 0:00:28]} Ne5 {[%emt 0:00:41]} 11. Bg3 {[%emt 0:00:35][%cal Rf3e5]} Nfd7 {[%emt 0:00:03]} 12. O-O {[%emt 0:00:22]} Be7 {[%emt 0:00:04]} 13. Ne1 {[%emt 0:01:21]} O-O {[%emt 0:00:11]} 14. f4 {[%emt 0:00:11] [#]} ({White should try} 14. b3 $14) 14... Nc6 {[%emt 0:00:20]} (14... d5 $1 $15 15. Kh1 (15. fxe5 Bc5 $17) (15. Bf2 Nc6) 15... Nc6) 15. Qd2 $14 {[%emt 0:00:06]} Rd8 {[%emt 0:00:09]} 16. f5 {[%emt 0:00:34]} Nde5 {[%emt 0:00:40]} 17. b3 {[%emt 0:00:44]} Bf6 {[%emt 0:00:13]} 18. Nd3 {[%emt 0:00:40]} Nxd3 {[%emt 0:00:14]} 19. Bxd3 {[%emt 0:00:29][%cal Oe4e5]} Qe7 {[%emt 0:00:12]} (19... Ne5 $11) 20. Na4 {[%emt 0:00:33]} (20. fxe6 $14 fxe6 21. e5 Nxe5 22. Ne4) 20... Rb8 $11 {[%emt 0:00:08]} 21. Bf2 {[%emt 0:00:50]} Qc7 {[%emt 0:00:18]} 22. Be2 {[%emt 0:01:00]} b5 {[%emt 0:00:33]} 23. cxb5 {[%emt 0:00:02]} axb5 {[%emt 0:00:00]} 24. Nc3 {[%emt 0:00:23]} Qa5 {[%emt 0:00:39]} 25. Nb1 {[%emt 0:01:00]} b4 {[%emt 0:00:22]} ({Reject} 25... exf5 $6 26. Qxa5 Nxa5 27. exf5 $11) 26. Rc1 {[%emt 0:00:51]} Ne5 {[%emt 0:00:22]} 27. Bd4 {[%emt 0:00:28] [#]} exf5 $1 {[%emt 0:00:03]} 28. exf5 {[%emt 0:00:07]} Bb7 {[%emt 0:00:59]} 29. Qe3 $2 {[%emt 0:00:20][%mdl 8192] White does not recover from this.} (29. Be3 $17) 29... Re8 {[%emt 0:00:15]} (29... Qd5 $142 {[%csl Gb7][%cal Rd5g2]} 30. Rf2 {[#]} Ng4 $1 {[%mdl 512]} 31. Bxg4 Bxd4) 30. Qd2 $19 {[%emt 0:00:49]} Ra8 {[%emt 0:00:23]} 31. Bf2 {[%emt 0:00:58]} Qxa2 {[%emt 0:00:23]} 32. Bb5 {[%emt 0:00:08] Qxa2 is the strong threat.} Reb8 {[%emt 0:02:19]} ({Not} 32... Qxb3 $2 33. Bxe8 Rxe8 34. Rc7 $19) 33. Qxa2 {[%emt 0:00:59]} (33. Ba4 {might work better.} Qxd2 34. Nxd2) 33... Rxa2 {[%emt 0:00:02] Black is clearly winning.} 34. Rfd1 {[%emt 0:00:01]} Bg5 {[%emt 0:01:09]} 35. Rc7 {[%emt 0:00:24]} Ng4 {[%emt 0:00:19]} 36. Re1 {[%emt 0:00:41][%cal Oc7b7] Inhibits Be3. Black must now prevent Rxb7!} h5 {[%emt 0:00:49]} ({Weaker is} 36... Rxf2 37. Rxb7 Rc8 38. h3 $11) 37. Be2 {[%emt 0:00:22]} Nxf2 {[%emt 0:00:25]} 38. Kxf2 {[%emt 0:00:01]} Be4 {[%emt 0:00:50] aiming for ...Re8. This bishop pair is nice.} 39. g3 {[%emt 0:00:37]} Rb2 {[%emt 0:00:15]} 40. Rc4 {[%emt 0:00:22]} Bxb1 {[%emt 0:00:13] Weighted Error Value: White=0.63/Black=0.27 (precise)} 0-1

[Event "3rd Caraca Open 2022"]
[Site "Catas Altas"]
[Date "2022.07.09"]
[Round "2.3"]
[White "Diamant, Andre"]
[Black "Da Circuncisao, Neivaldo Jacob"]
[Result "1-0"]
[ECO "C06"]
[WhiteElo "2538"]
[BlackElo "1602"]
[Annotator "RC"]
[PlyCount "91"]
[EventDate "2022.06.28"]
[EventCountry "BRA"]
[SourceTitle "playchess.com"]
[Source "ChessBase"]
[SourceQuality "1"]
[TimeControl "900+5"]

1. e4 {[%emt 0:00:03]} e6 {[%emt 0:00:01]} 2. d4 {[%emt 0:00:02]} d5 {[%emt 0:15:14]} 3. Nd2 {[%emt 0:00:02]} Nf6 {[%emt 0:00:00]} 4. e5 {[%emt 0:00:01]} Nfd7 {[%emt 0:00:00]} 5. Ngf3 {[%emt 0:00:01]} c5 {[%emt 0:00:00]} 6. c3 {[%emt 0:00:01]} Nc6 {[%emt 0:00:00]} 7. Bd3 {[%emt 0:00:03]} cxd4 {[%emt 0:00:00]} 8. cxd4 {[%emt 0:00:01]} Be7 {[%emt 0:00:00]} 9. O-O {[%emt 0:00:03]} O-O {[%emt 0:00:00]} 10. Re1 {[%emt 0:00:06]} f5 {[%emt 0:00:00]} 11. exf6 {[%emt 0:00:06]} Nxf6 {[%emt 0:00:00]} 12. Nb3 {[%emt 0:00:14]} Qd6 {[%emt 0:00:00]} 13. Ne5 {[%emt 0:00:50]} Bd7 {[%emt 0:00:00]} 14. Bg5 {[%emt 0:01:15]} Rae8 {[%emt 0:00:00]} 15. Bh4 {[%emt 0:00:25]} Bd8 {[%emt 0:00:00]} 16. Bg3 {[%emt 0:00:28]} Qe7 {[%emt 0:00:00]} 17. Nxc6 {[%emt 0:01:04]} bxc6 {[%emt 0:00:00]} 18. Nc5 {[%emt 0:00:09]} Bb6 {[%emt 0:00:00]} 19. Rc1 {[%emt 0:00:03]} Qd8 {[%emt 0:00:00]} 20. Be5 {[%emt 0:01:14]} Bc7 {[%emt 0:00:00]} 21. Qc2 {[%emt 0:00:35]} h6 {[%emt 0:00:00]} 22. Nxd7 {[%emt 0:01:01]} Qxd7 {[%emt 0:00:00]} 23. Qxc6 {[%emt 0:00:21]} Bxe5 {[%emt 0:00:00]} 24. dxe5 {[%emt 0:00:17]} Qxc6 {[%emt 0:00:00]} 25. Rxc6 {[%emt 0:00:01]} Nh7 {[%emt 0:00:20]} 26. Rc7 {[%emt 0:00:10]} Ra8 {[%emt 0:00:26]} 27. Rec1 {[%emt 0:00:29]} Ng5 {[%emt 0:00:14]} 28. R1c6 {[%emt 0:00:06]} Rab8 {[%emt 0:00:22]} 29. b3 {[%emt 0:00:05]} Rb6 {[%emt 0:00:05]} 30. Rxb6 {[%emt 0:00:19]} axb6 {[%emt 0:00:01]} 31. Rc6 {[%emt 0:00:01]} Ne4 {[%emt 0:00:29]} 32. Bxe4 {[%emt 0:00:19]} dxe4 {[%emt 0:00:01]} 33. Rxe6 {[%emt 0:00:21]} Rc8 {[%emt 0:00:02]} 34. h4 {[%emt 0:00:16]} Rc1+ {[%emt 0:00:09]} 35. Kh2 {[%emt 0:00:01]} Rc2 {[%emt 0:00:01]} 36. Kg3 {[%emt 0:00:05]} Rxa2 {[%emt 0:00:09]} 37. Rxb6 {[%emt 0:00:02]} Rb2 {[%emt 0:00:22]} 38. e6 {[%emt 0:00:04]} Kf8 {[%emt 0:00:03]} 39. Rb7 {[%emt 0:00:04]} g5 {[%emt 0:00:14]} 40. hxg5 {[%emt 0:00:07]} hxg5 {[%emt 0:00:01]} 41. b4 {[%emt 0:00:55]} Re2 {[%emt 0:00:10]} 42. b5 {[%emt 0:00:09]} e3 {[%emt 0:00:01]} 43. b6 {[%emt 0:02:25]} exf2 {[%emt 0:00:12]} 44. Rf7+ {[%emt 0:00:12]} Ke8 {[%emt 0:00:06]} 45. Rxf2 {[%emt 0:00:11]} Rxe6 {[%emt 0:00:07]} 46. Rb2 {[%emt 0:00:06]} 1-0

[Event "3rd Caraca Open 2022"]
[Site "Catas Altas"]
[Date "2022.07.09"]
[Round "2.4"]
[White "Silva, Lucas Teixeira"]
[Black "Languidey, Simon Alejandro"]
[Result "0-1"]
[ECO "A29"]
[WhiteElo "1571"]
[BlackElo "2424"]
[Annotator "RC"]
[PlyCount "66"]
[EventDate "2022.06.28"]
[EventCountry "BRA"]
[SourceTitle "playchess.com"]
[Source "ChessBase"]
[SourceQuality "1"]
[TimeControl "900+5"]

1. c4 {[%emt 0:00:02]} e5 {[%emt 0:00:01]} 2. Nc3 {[%emt 0:00:03]} Nf6 {[%emt 0:00:03]} 3. d3 {[%emt 0:00:04]} d5 {[%emt 0:00:08]} 4. cxd5 {[%emt 0:00:09]} Nxd5 {[%emt 0:00:04]} 5. g3 {[%emt 0:00:01]} Nc6 {[%emt 0:00:05]} 6. Bg2 {[%emt 0:00:03]} Nb6 {[%emt 0:00:03]} 7. Nf3 {[%emt 0:00:02]} Be7 {[%emt 0:00:09]} 8. Be3 {[%emt 0:00:08]} O-O {[%emt 0:00:09]} 9. O-O {[%emt 0:00:03]} Re8 {[%emt 0:00:06]} 10. a3 {[%emt 0:00:02]} Bf8 {[%emt 0:00:12]} 11. Qc2 {[%emt 0:00:02]} Bg4 {[%emt 0:00:50]} 12. Rac1 {[%emt 0:00:02]} Qd7 {[%emt 0:00:44]} 13. Rfd1 {[%emt 0:00:04]} Rad8 {[%emt 0:00:43]} 14. Ne4 {[%emt 0:00:05]} Nd5 {[%emt 0:00:37]} 15. Bc5 {[%emt 0:00:23]} Bd6 {[%emt 0:00:27]} 16. b4 {[%emt 0:00:42]} a6 {[%emt 0:00:15]} 17. Ne1 {[%emt 0:00:44]} Be6 {[%emt 0:00:46]} 18. Nf3 {[%emt 0:00:44]} h6 {[%emt 0:00:51]} 19. Nfd2 {[%emt 0:00:33]} f5 {[%emt 0:00:03]} 20. Nc3 {[%emt 0:01:02]} Bxc5 {[%emt 0:00:16]} 21. Nxd5 {[%emt 0:00:29]} Bxf2+ {[%emt 0:00:09]} 22. Kxf2 {[%emt 0:00:03]} Bxd5 {[%emt 0:00:02]} 23. Nf3 {[%emt 0:00:35]} Qf7 {[%emt 0:00:52]} 24. Rf1 {[%emt 0:00:27]} e4 {[%emt 0:00:05]} 25. Ne1 {[%emt 0:00:21]} Nd4 {[%emt 0:00:26]} 26. Qxc7 {[%emt 0:00:55]} e3+ {[%emt 0:00:09]} 27. Kg1 {[%emt 0:00:23]} Nxe2+ {[%emt 0:00:05]} 28. Kh1 {[%emt 0:00:08]} Bxg2+ {[%emt 0:00:09]} 29. Kxg2 {[%emt 0:00:03]} Nxc1 {[%emt 0:00:04]} 30. Qxc1 {[%emt 0:00:07]} Qd5+ {[%emt 0:00:11]} 31. Rf3 {[%emt 0:00:21]} Rc8 {[%emt 0:00:16]} 32. Qd1 {[%emt 0:00:20]} Qa2+ {[%emt 0:00:17]} 33. Kg1 {[%emt 0:01:09]} Qd2 {[%emt 0:00:35]} 0-1

[Event "3rd Caraca Open 2022"]
[Site "Catas Altas"]
[Date "2022.07.09"]
[Round "3.1"]
[White "Campos, Igor Ribeiro"]
[Black "Mareco, Sandro"]
[Result "0-1"]
[ECO "B12"]
[WhiteElo "2197"]
[BlackElo "2657"]
[Annotator "TA"]
[PlyCount "78"]
[EventDate "2022.06.28"]
[EventCountry "BRA"]
[SourceTitle "playchess.com"]
[Source "ChessBase"]
[SourceQuality "1"]
[TimeControl "900+5"]

{[%evp 12,78,-20,-28,-37,-31,0,0,0,0,4,0,-4,-12,-24,-30,-28,-68,-62,-63,-75,-61,-62,-118,-83,-82,-75,-110,-82,-85,-84,-79,-6,-11,-33,-18,0,0,0,0,0,0,0,0,0,0,31,-47,-71,-162,-28,-22,-14,-404,-393,-560,-545,-568,-560,-577,-575,-567,-573,-563,-564,-598,-551,-535,-359]} 1. e4 {[%emt 0:00:03]} c6 {[%emt 0:00:03]} 2. d4 {[%emt 0:00:04]} d5 {[%emt 0:00:01]} 3. e5 {[%emt 0:00:02]} Bf5 {[%emt 0:00:04]} 4. Ne2 {[%emt 0:00:02]} e6 {[%emt 0:00:11]} 5. Ng3 {[%emt 0:00:01]} Bg6 {[%emt 0:00:01]} 6. h4 {[%emt 0:00:01]} h5 {[%emt 0:01:25]} 7. Bd3 {[%emt 0:00:02]} Bxd3 {[%emt 0:00:13] B12: Caro-Kann: Advance Variation.} 8. cxd3 {[%emt 0:00:05]} g6 {[%emt 0:00:41]} 9. Nd2 {[%emt 0:00:05] [#]} Be7 $146 {[%emt 0:00:34] The position is equal.} ({Predecessor:} 9... Ne7 10. Nf3 Qb6 11. O-O Na6 12. Rb1 Nc7 13. Bg5 Nf5 14. Nxf5 exf5 15. b4 a6 {0-1 (40) Pinheiro,I (2320)-Molina,R (2434) Chess.com INT 2021}) 10. Nf3 {[%emt 0:00:02]} Nh6 {[%emt 0:00:02]} 11. Be3 {[%emt 0:00:26]} Ng4 {[%emt 0:00:03]} 12. Bg5 {[%emt 0:02:09]} Qa5+ {[%emt 0:00:01]} 13. Kf1 {[%emt 0:00:29]} Nd7 {[%emt 0:00:10]} 14. a3 {[%emt 0:00:26]} Qb6 {[%emt 0:00:08]} 15. b4 {[%emt 0:00:50] Inhibits c5.} Bxg5 {[%emt 0:01:59]} (15... a5 {is more complex.} 16. Ke2 Bxg5 17. hxg5 axb4 18. axb4 Ke7) 16. hxg5 {[%emt 0:00:03]} a5 {[%emt 0:00:03]} 17. Ne2 {[%emt 0:01:33]} (17. Qb1 $15) 17... axb4 {[%emt 0:01:19]} 18. axb4 {[%emt 0:00:03]} O-O {[%emt 0:00:03] And now ...Rxa1 would win.} 19. g3 {[%emt 0:02:07]} Rxa1 {[%emt 0:00:16] Black is more active.} 20. Qxa1 {[%emt 0:00:01]} Qxb4 {[%emt 0:00:03] Threatens to win with ...Qb3.} 21. Kg2 {[%emt 0:00:02]} Qb3 {[%emt 0:00:12]} ({Black should try} 21... b6 $17) 22. Rb1 $1 $11 {[%emt 0:03:54]} Qxd3 {[%emt 0:00:53]} 23. Nf4 {[%emt 0:00:03]} Qa6 {[%emt 0:00:08]} 24. Qxa6 {[%emt 0:00:40]} bxa6 {[%emt 0:00:02]} 25. Rb7 {[%emt 0:00:02][%cal Bb1b7,Bb7c7,Bc7c6][%mdl 32]} Rd8 {[%emt 0:00:02]} 26. Nd3 {[%emt 0:00:15] Inhibits c5.} Kf8 {[%emt 0:00:43]} 27. Rc7 {[%emt 0:01:37]} Ke8 {[%emt 0:00:50]} 28. Rxc6 {[%emt 0:00:08]} Ra8 {[%emt 0:00:02]} (28... a5 $5 {[%cal Rd8a8]}) 29. Nb2 {[%emt 0:00:19]} (29. Nfe1 $14) 29... a5 $15 {[%emt 0:00:23]} 30. Na4 {[%emt 0:00:04] [#]} (30. Rc3 $17) 30... Kd8 {[%emt 0:00:02]} (30... Rb8 $1 $19 {...Rb4 is the strong threat.} 31. Rc2 Rb4) 31. Ne1 $1 $11 {[%emt 0:00:10]} Rb8 {[%emt 0:00:03]} 32. Rc3 $2 {[%emt 0:00:35][%mdl 8192] Loses the game.} (32. Nc2 $1 $11 {and White stays safe.}) 32... Rb4 $1 $19 {[%emt 0:00:06][%csl LRa4,LRd4]} 33. Nc5 {[%emt 0:01:02]} (33. Ra3 {was necessary.} Rxd4 34. f4) 33... Nxc5 {[%emt 0:00:06] Black is clearly winning.} 34. Rxc5 {[%emt 0:00:13]} Rxd4 {[%emt 0:00:01] KRN-KRN} 35. Nf3 {[%emt 0:00:14]} Ra4 {[%emt 0:00:03]} 36. Rc2 {[%emt 0:00:07]} Rc4 {[%emt 0:00:12]} 37. Ra2 {[%emt 0:00:03]} a4 {[%emt 0:00:01]} 38. Re2 {[%emt 0:00:04]} Re4 {[%emt 0:00:09]} 39. Ra2 {[%emt 0:00:03]} Nxe5 {[%emt 0:00:13] Weighted Error Value: White=0.40/Black=0.19 (very precise)} 0-1

[Event "3rd Caraca Open 2022"]
[Site "Catas Altas"]
[Date "2022.07.09"]
[Round "3.2"]
[White "Supi, Luis Paulo"]
[Black "Crespo De Oliveira, Lucas"]
[Result "1-0"]
[ECO "B60"]
[WhiteElo "2603"]
[BlackElo "2197"]
[Annotator "TA"]
[PlyCount "107"]
[EventDate "2022.06.28"]
[EventCountry "BRA"]
[SourceTitle "playchess.com"]
[Source "ChessBase"]
[SourceQuality "1"]
[TimeControl "900+5"]

{[%evp 19,107,-4,0,-2,0,-2,-12,-26,-27,-27,-27,-27,-28,-30,-12,-18,-18,-16,-11,-25,-11,-34,-24,-27,-16,-20,-11,-24,-18,-17,-20,-26,-8,-16,-7,-21,0,-15,-15,-26,-29,-26,-13,-21,-25,-29,-29,-29,-13,-27,-31,-22,0,0,0,-69,-15,-26,0,-68,0,-22,0,0,0,-17,287,0,192,182,245,-51,-28,-414,-409,-753,-72,-252,-251,-639,-325,-610,33,33,33,33,35,41,632,625]} 1. e4 {[%emt 0:00:02]} c5 {[%emt 0:00:02]} 2. Nf3 {[%emt 0:00:01]} d6 {[%emt 0:00:01]} 3. d4 {[%emt 0:00:03]} cxd4 {[%emt 0:00:03]} 4. Nxd4 {[%emt 0:00:02]} Nf6 {[%emt 0:00:01]} 5. Nc3 {[%emt 0:00:01]} Nc6 {[%emt 0:00:03]} 6. Bg5 {[%emt 0:00:07]} Qb6 {[%emt 0:00:04]} 7. Nb3 {[%emt 0:00:13]} e6 {[%emt 0:00:02]} 8. Bd3 {[%emt 0:00:42]} Be7 {[%emt 0:00:07]} 9. O-O {[%emt 0:00:03]} O-O {[%emt 0:00:09]} 10. Kh1 {[%emt 0:00:06]} a6 {[%emt 0:00:54]} 11. f4 {[%emt 0:00:05] B60: Sicilian: Richter-Rauzer: Unusual Black 6th moves and 6...Bd7 without 7 Qd2.} h6 {[%emt 0:02:14]} 12. Bh4 {[%emt 0:00:44] [#]} Nxe4 $1 {[%emt 0:00:32]} 13. Nxe4 {[%emt 0:01:01][%cal Oe4f6] And now Nf6+! would win. The position is equal.} (13. Bxe7 Nxc3) 13... Bxh4 {[%emt 0:00:05]} 14. Nxd6 {[%emt 0:00:02]} Be7 {[%emt 0:00:38]} 15. Nxc8 {[%emt 0:00:21]} Raxc8 {[%emt 0:00:01]} 16. c3 {[%emt 0:00:02] [#]} Rcd8 $146 {[%emt 0:00:17]} ({Predecessor:} 16... Bf6 17. Qe2 g6 18. Rad1 Rcd8 19. Be4 Bg7 {½-½ (19) Heberla,B (2420)-Gajewski,G (2462) Chalkidiki 2003}) 17. Qe2 {[%emt 0:00:02]} Bf6 {[%emt 0:01:00]} 18. Rad1 {[%emt 0:01:27]} Ne7 {[%emt 0:00:22]} 19. g3 {[%emt 0:00:14]} a5 {[%emt 0:01:30]} 20. Nc1 {[%emt 0:01:00]} Rd6 {[%emt 0:00:52]} 21. Be4 {[%emt 0:00:19]} Rfd8 {[%emt 0:00:12]} 22. Rxd6 {[%emt 0:00:37]} Rxd6 {[%emt 0:00:09]} 23. a4 {[%emt 0:00:29]} Qd8 {[%emt 0:00:33] White should prevent ...Rd2.} 24. Nb3 {[%emt 0:00:36] Prevents Rd2.} b6 {[%emt 0:00:13]} 25. Rf2 {[%emt 0:01:10]} g6 {[%emt 0:00:23]} 26. Nd2 {[%emt 0:00:11]} Nf5 {[%emt 0:01:28]} 27. Bc2 {[%emt 0:00:57]} Qa8+ {[%emt 0:01:13]} 28. Kg1 {[%emt 0:01:01]} Rd8 {[%emt 0:00:24]} 29. Be4 {[%emt 0:02:13]} Qa7 {[%emt 0:00:38]} 30. Kg2 {[%emt 0:00:11]} Be7 {[%emt 0:00:14]} 31. Rf3 {[%emt 0:00:15]} Qd7 {[%emt 0:00:33][%csl LRa4,LRd2]} 32. Nc4 {[%emt 0:00:04]} Qxa4 {[%emt 0:01:02]} 33. Nxb6 {[%emt 0:00:07]} Qa2 {[%emt 0:00:25] next ...Rb8 is good for Black.} 34. Bd3 {[%emt 0:02:32]} Bc5 {[%emt 0:00:27]} 35. Nc4 {[%emt 0:00:01]} ({Much weaker is} 35. Bxf5 exf5 36. Nc4 (36. Nd7 Rxd7 37. Qe8+ Kg7 $17) 36... a4 $17) 35... a4 {[%emt 0:00:19]} (35... Nd6 $5 {[%cal Rd8b8]}) 36. Kh3 {[%emt 0:00:01]} h5 {[%emt 0:00:15]} 37. Ne5 {[%emt 0:00:26]} (37. Rf1 $11) 37... Rb8 {[%emt 0:00:26]} (37... a3 $1 $15 38. Nc4 axb2 39. Nxb2 Ne3 $1) 38. Nc4 $1 $11 {[%emt 0:00:12]} Rd8 {[%emt 0:00:04]} 39. Ne5 {[%emt 0:00:18]} (39. Rf1 $11) 39... Rb8 {[%emt 0:00:01]} (39... a3 $1 $15 {should be considered.} 40. Nc4 axb2 41. Nxb2 Ne3 $1) 40. Nc4 $1 {[%emt 0:00:01]} Rd8 {[%emt 0:00:00]} 41. Rf1 {[%emt 0:00:06]} Qb3 {[%emt 0:00:15]} 42. Ne5 {[%emt 0:00:13]} Rb8 $2 {[%emt 0:00:11][%mdl 8192]} (42... Kg7 $11) 43. Rb1 $2 {[%emt 0:00:10]} ({Only move:} 43. Nd7 $18) 43... Qd5 {[%emt 0:00:09]} (43... Bd6 $11) 44. Bc4 $1 $18 {[%emt 0:00:06]} Qd6 {[%emt 0:00:04] [#]} (44... Qb7 $142) 45. Qf3 $2 {[%emt 0:00:07]} (45. Rd1 $1 $18 {[%cal Rd1d6]} Qb6 46. Nd7) 45... Ne3 $15 {[%emt 0:00:03]} 46. Ba2 $2 {[%emt 0:00:03][%mdl 8192]} (46. b4 $1 $11 {and White stays safe.} Bb6 47. Ra1) 46... Kg7 $19 {[%emt 0:00:06][%cal Og6g5]} 47. Qe2 {[%emt 0:00:04]} (47. Nc4 $142 Qd3 48. Nxe3 Bxe3 49. Qd1 Qf5+ 50. Kg2) 47... Rb6 $2 {[%emt 0:00:06]} (47... g5 $19 {[%cal Od6d2] ( -> ...Qd2!)} 48. Qxh5 g4+ 49. Nxg4 Rh8 50. Qxh8+ Kxh8 51. Nxe3 Bxe3) 48. Rc1 $2 {[%emt 0:00:08]} (48. Re1 $17) 48... Qb8 {[%emt 0:00:05]} 49. Nd3 {[%emt 0:00:06]} (49. Rb1) 49... Qc7 {[%emt 0:00:06][%cal Oe6e5] aiming for ...e5!} 50. Re1 $2 {[%emt 0:00:01] [#]} (50. Ne5) 50... Nd5 $2 {[%emt 0:00:08]} (50... e5 $1 $19 51. Nxc5 exf4) 51. Bxd5 $14 exd5 {[%emt 0:00:02]} 52. Qe5+ {[%emt 0:00:10]} Qxe5 {[%emt 0:00:02]} 53. Rxe5 {[%emt 0:00:01]} Be7 {[%emt 0:00:09][%mdl 8192]} 54. Rxe7 {[%emt 0:00:02] Weighted Error Value: White=0.58/Black=0.81} 1-0